[Event "*** Titled Tuesday Blitz"]
[Site "Chess.com"]
[Date "2018.09.04"]
[Round "4"]
[White "RU_B9"]
[Black "ItalianMachine"]
[Result "1-0"]
[WhiteElo "2012"]
[BlackElo "2301"]
[TimeControl "180+2"]
[EndTime "14:27:12 PDT"]
[Termination "RU_B9 won by resignation"]

1. c4 {[%clk 0:02:57.8]} 1... c5 {[%clk 0:02:58]} 2. Nf3 {[%clk 0:02:57.7]} 2...
Nc6 {[%clk 0:02:58.1]} 3. d4 {[%clk 0:02:58.4]} 3... cxd4 {[%clk 0:02:58.3]} 4.
Nxd4 {[%clk 0:03:00.3]} 4... Nf6 {[%clk 0:02:59]} 5. Nc3 {[%clk 0:02:58]} 5...
g6 {[%clk 0:02:59.8]} 6. e4 {[%clk 0:02:58.5]} 6... d6 {[%clk 0:02:58.8]} 7. Be2
{[%clk 0:02:57.7]} 7... Bg7 {[%clk 0:03:00]} 8. Be3 {[%clk 0:02:57.9]} 8... O-O
{[%clk 0:02:55.2]} 9. O-O {[%clk 0:02:57.7]} 9... Ng4 {[%clk 0:02:47.4]} 10.
Bxg4 {[%clk 0:02:53.2]} 10... Bxg4 {[%clk 0:02:47.6]} 11. Nxc6 {[%clk
0:02:14.1]} 11... Bxd1 {[%clk 0:02:47.3]} 12. Nxd8 {[%clk 0:02:14.1]} 12... Bg4
{[%clk 0:02:43]} 13. Nxb7 {[%clk 0:02:11.6]} 13... Rfb8 {[%clk 0:02:35.9]} 14.
Na5 {[%clk 0:02:06.8]} 14... Rxb2 {[%clk 0:02:36.7]} 15. Nd5 {[%clk 0:01:33.5]}
15... e6 {[%clk 0:02:36.9]} 16. Ne7+ {[%clk 0:01:33.2]} 16... Kf8 {[%clk
0:02:33]} 17. Nec6 {[%clk 0:01:29.5]} 17... Be2 {[%clk 0:02:23.2]} 18. Rfc1
{[%clk 0:01:18.5]} 18... Bd3 {[%clk 0:02:18.4]} 19. f3 {[%clk 0:01:11.7]} 19...
Re2 {[%clk 0:02:14.1]} 20. Bd4 {[%clk 0:01:01.3]} 20... e5 {[%clk 0:01:28.7]}
21. Bf2 {[%clk 0:00:50.1]} 21... f5 {[%clk 0:01:29.6]} 22. Nb4 {[%clk
0:00:38.8]} 22... fxe4 {[%clk 0:01:28.3]} 23. Nxd3 {[%clk 0:00:33.8]} 23... exd3
{[%clk 0:01:28.9]} 24. Rd1 {[%clk 0:00:20.9]} 24... e4 {[%clk 0:01:19.6]} 25.
Rab1 {[%clk 0:00:21.3]} 25... e3 {[%clk 0:01:03]} 26. Bg3 {[%clk 0:00:21.2]}
26... Rxa2 {[%clk 0:01:02.6]} 27. Bxd6+ {[%clk 0:00:20.2]} 27... Kf7 {[%clk
0:01:03.9]} 28. Nc6 {[%clk 0:00:20.4]} 28... Re8 {[%clk 0:00:31.6]} 29. Rxd3
{[%clk 0:00:20.5]} 29... e2 {[%clk 0:00:31.4]} 30. Re1 {[%clk 0:00:19.1]} 30...
Re6 {[%clk 0:00:21.5]} 31. Nd8+ {[%clk 0:00:14.1]} 31... Kf6 {[%clk 0:00:22.9]}
32. Nxe6 {[%clk 0:00:14.4]} 32... Kxe6 {[%clk 0:00:24.8]} 33. c5 {[%clk
0:00:13.2]} 33... Kd7 {[%clk 0:00:22.4]} 34. Kf2 {[%clk 0:00:14.1]} 34... Kc6
{[%clk 0:00:22.9]} 35. Rxe2 {[%clk 0:00:15.1]} 35... Ra4 {[%clk 0:00:23.5]} 36.
Re7 {[%clk 0:00:13.9]} 36... Bd4+ {[%clk 0:00:24.6]} 37. Kg3 {[%clk 0:00:12.5]}
37... Bf6 {[%clk 0:00:21.2]} 38. Rc7+ {[%clk 0:00:12.7]} 38... Kb5 {[%clk
0:00:23.1]} 39. Rb7+ {[%clk 0:00:12.3]} 39... Kc6 {[%clk 0:00:24]} 40. Rxh7
{[%clk 0:00:12]} 40... a5 {[%clk 0:00:18.7]} 41. Rh6 {[%clk 0:00:12.2]} 41...
Bg5 {[%clk 0:00:18.4]} 42. Rxg6 {[%clk 0:00:12.2]} 42... Bh4+ {[%clk 0:00:20.3]}
43. Kh3 {[%clk 0:00:13]} 43... Kd7 {[%clk 0:00:22.2]} 44. g3 {[%clk 0:00:13.3]}
44... Bd8 {[%clk 0:00:24.1]} 45. f4 {[%clk 0:00:13.8]} 45... Kc6 {[%clk
0:00:26]} 46. Be7+ {[%clk 0:00:13.4]} 1-0

[Event "*** Titled Tuesday Blitz"]
[Site "Chess.com"]
[Date "2018.09.04"]
[Round "4"]
[White "Evandro_Barbosa"]
[Black "biostatistician"]
[Result "1-0"]
[WhiteElo "2478"]
[BlackElo "2474"]
[TimeControl "180+2"]
[EndTime "14:27:14 PDT"]
[Termination "Evandro_Barbosa won by checkmate"]

1. e4 {[%clk 0:03:01.9]} 1... e6 {[%clk 0:03:00.7]} 2. d3 {[%clk 0:03:01.4]}
2... d5 {[%clk 0:03:02.6]} 3. Qe2 {[%clk 0:03:02.1]} 3... Nc6 {[%clk 0:02:59.8]}
4. Nf3 {[%clk 0:03:02.4]} 4... Nf6 {[%clk 0:03:01.1]} 5. c3 {[%clk 0:03:02]}
5... a5 {[%clk 0:03:01.9]} 6. a4 {[%clk 0:03:01.6]} 6... dxe4 {[%clk 0:02:59.2]}
7. dxe4 {[%clk 0:03:01.3]} 7... e5 {[%clk 0:03:00.8]} 8. Qc2 {[%clk 0:03:01.3]}
8... Bd6 {[%clk 0:02:55.5]} 9. Bb5 {[%clk 0:02:59.5]} 9... O-O {[%clk
0:02:56.6]} 10. Bg5 {[%clk 0:02:59.2]} 10... h6 {[%clk 0:02:55.3]} 11. Bh4
{[%clk 0:02:59.7]} 11... Ne7 {[%clk 0:02:53]} 12. Bxf6 {[%clk 0:02:59.7]} 12...
gxf6 {[%clk 0:02:54.9]} 13. Nh4 {[%clk 0:02:55.9]} 13... Ng6 {[%clk 0:02:43.3]}
14. Nf5 {[%clk 0:02:55.3]} 14... Kh7 {[%clk 0:02:30.1]} 15. Nd2 {[%clk
0:02:54.4]} 15... Rg8 {[%clk 0:02:30.7]} 16. g3 {[%clk 0:02:51.4]} 16... Ne7
{[%clk 0:02:16.1]} 17. Ne3 {[%clk 0:02:48.6]} 17... c6 {[%clk 0:02:12.6]} 18.
Be2 {[%clk 0:02:47.7]} 18... Bc5 {[%clk 0:02:11.2]} 19. Ndf1 {[%clk 0:02:33.1]}
19... Be6 {[%clk 0:02:09.2]} 20. h4 {[%clk 0:02:25.4]} 20... Qb6 {[%clk
0:02:04]} 21. Rh2 {[%clk 0:02:07.4]} 21... Rad8 {[%clk 0:02:03.9]} 22. Nc4
{[%clk 0:02:07.5]} 22... Qc7 {[%clk 0:01:59.4]} 23. Nfe3 {[%clk 0:02:04.3]}
23... b6 {[%clk 0:01:47.1]} 24. Nf5 {[%clk 0:02:03.2]} 24... Bxf5 {[%clk
0:01:31.2]} 25. exf5 {[%clk 0:02:05.1]} 25... Qd7 {[%clk 0:01:31.3]} 26. Bf3
{[%clk 0:02:00.7]} 26... Kg7 {[%clk 0:01:21.7]} 27. Be4 {[%clk 0:02:01.1]} 27...
Qc7 {[%clk 0:01:10.9]} 28. Qe2 {[%clk 0:01:59.4]} 28... Nd5 {[%clk 0:01:01.7]}
29. Qf3 {[%clk 0:01:52.9]} 29... Rd7 {[%clk 0:00:56.2]} 30. Kf1 {[%clk
0:01:53.5]} 30... Rgd8 {[%clk 0:00:54.4]} 31. Kg2 {[%clk 0:01:54.2]} 31... Kh7
{[%clk 0:00:49.6]} 32. Rhh1 {[%clk 0:01:54.9]} 32... Bf8 {[%clk 0:00:48.9]} 33.
Rhd1 {[%clk 0:01:53.4]} 33... Ne7 {[%clk 0:00:46.2]} 34. Qh5 {[%clk 0:01:46.1]}
34... Kg7 {[%clk 0:00:45.7]} 35. Rxd7 {[%clk 0:01:42.2]} 35... Rxd7 {[%clk
0:00:45.8]} 36. Ne3 {[%clk 0:01:43.5]} 36... Ng8 {[%clk 0:00:39.2]} 37. Qg4+
{[%clk 0:01:43.1]} 37... Kh7 {[%clk 0:00:40.2]} 38. Qe2 {[%clk 0:01:42.1]} 38...
Bc5 {[%clk 0:00:34.8]} 39. Ng4 {[%clk 0:01:42.3]} 39... Qd6 {[%clk 0:00:32.6]}
40. Qf3 {[%clk 0:01:33.1]} 40... Kg7 {[%clk 0:00:31.6]} 41. Bxc6 {[%clk
0:01:32.6]} 41... Rd8 {[%clk 0:00:32.4]} 42. Bb5 {[%clk 0:01:28.8]} 42... Qd2
{[%clk 0:00:33.5]} 43. Bc4 {[%clk 0:01:23.4]} 43... Qxb2 {[%clk 0:00:32.2]} 44.
Rd1 {[%clk 0:00:59.5]} 44... Rxd1 {[%clk 0:00:27.6]} 45. Qxd1 {[%clk 0:01:01.4]}
45... Qxc3 {[%clk 0:00:28.8]} 46. Qd5 {[%clk 0:01:02.6]} 46... Kh8 {[%clk
0:00:02.3]} 47. Qxf7 {[%clk 0:01:03.1]} 47... Ne7 {[%clk 0:00:03.5]} 48. Qxf6+
{[%clk 0:00:59]} 48... Kh7 {[%clk 0:00:04.8]} 49. Qxh6# {[%clk 0:00:59.1]} 1-0

[Event "*** Titled Tuesday Blitz"]
[Site "Chess.com"]
[Date "2018.09.04"]
[Round "4"]
[White "ChessicallyInclined"]
[Black "Fighterman91"]
[Result "0-1"]
[WhiteElo "2357"]
[BlackElo "2479"]
[TimeControl "180+2"]
[EndTime "14:27:16 PDT"]
[Termination "Fighterman91 won by resignation"]

1. d4 {[%clk 0:03:01.9]} 1... Nf6 {[%clk 0:03:00.5]} 2. c4 {[%clk 0:03:02.5]}
2... g6 {[%clk 0:03:01.2]} 3. Nc3 {[%clk 0:03:03.7]} 3... d5 {[%clk 0:03:02.7]}
4. Nf3 {[%clk 0:03:04.9]} 4... Bg7 {[%clk 0:03:03.5]} 5. Qb3 {[%clk 0:03:06.5]}
5... dxc4 {[%clk 0:03:04.2]} 6. Qxc4 {[%clk 0:03:08.4]} 6... Be6 {[%clk
0:02:59.1]} 7. Qd3 {[%clk 0:02:57.1]} 7... O-O {[%clk 0:02:41.4]} 8. e4 {[%clk
0:02:56.4]} 8... c5 {[%clk 0:02:43]} 9. d5 {[%clk 0:02:52.9]} 9... Bc8 {[%clk
0:02:44.2]} 10. Be2 {[%clk 0:02:50]} 10... b6 {[%clk 0:02:45.7]} 11. O-O {[%clk
0:02:43.6]} 11... e6 {[%clk 0:02:43]} 12. Bg5 {[%clk 0:02:39.4]} 12... h6 {[%clk
0:02:37.4]} 13. Bxf6 {[%clk 0:02:16.3]} 13... Bxf6 {[%clk 0:02:32.4]} 14. e5
{[%clk 0:02:14.4]} 14... Bg7 {[%clk 0:02:34]} 15. dxe6 {[%clk 0:02:00.9]} 15...
Bxe6 {[%clk 0:02:30.9]} 16. Qe4 {[%clk 0:02:01.1]} 16... Nd7 {[%clk 0:02:15.7]}
17. Rfe1 {[%clk 0:01:23.2]} 17... Qe7 {[%clk 0:01:52.6]} 18. Bc4 {[%clk
0:01:07.9]} 18... Rae8 {[%clk 0:01:35.2]} 19. Nd5 {[%clk 0:00:47.8]} 19... Bxd5
{[%clk 0:01:05.6]} 20. Qxd5 {[%clk 0:00:42.2]} 20... Nxe5 {[%clk 0:01:07.5]} 21.
Nxe5 {[%clk 0:00:36.4]} 21... Bxe5 {[%clk 0:01:09.4]} 22. Re3 {[%clk 0:00:34.5]}
22... Qh4 {[%clk 0:00:50.2]} 23. Rxe5 {[%clk 0:00:27.3]} 23... Rxe5 {[%clk
0:00:50.3]} 24. Qxe5 {[%clk 0:00:29.2]} 24... Qxc4 {[%clk 0:00:51.6]} 25. a3
{[%clk 0:00:30.8]} 25... Qd4 {[%clk 0:00:52.3]} 26. Qe2 {[%clk 0:00:29.2]} 26...
Rd8 {[%clk 0:00:52.2]} 27. Rf1 {[%clk 0:00:25.4]} 27... Kg7 {[%clk 0:00:47.5]}
28. g3 {[%clk 0:00:26.7]} 28... c4 {[%clk 0:00:46.6]} 29. h4 {[%clk 0:00:23]}
29... h5 {[%clk 0:00:46.9]} 30. Kg2 {[%clk 0:00:22.3]} 30... b5 {[%clk
0:00:48.3]} 31. Qe7 {[%clk 0:00:21]} 31... Rd7 {[%clk 0:00:49.1]} 32. Qe2 {[%clk
0:00:21.5]} 32... Rd6 {[%clk 0:00:48.9]} 33. Re1 {[%clk 0:00:22.6]} 33... Re6
{[%clk 0:00:49.8]} 34. Qf1 {[%clk 0:00:23.3]} 34... Rxe1 {[%clk 0:00:49.3]} 35.
Qxe1 {[%clk 0:00:25.2]} 35... Qxb2 {[%clk 0:00:50.7]} 36. Qe8 {[%clk 0:00:24.9]}
36... a5 {[%clk 0:00:29.4]} 37. Qd8 {[%clk 0:00:18.8]} 37... b4 {[%clk
0:00:13.7]} 38. axb4 {[%clk 0:00:15.4]} 38... axb4 {[%clk 0:00:14.4]} 39. Qc7
{[%clk 0:00:16.6]} 39... Qc3 {[%clk 0:00:15.4]} 40. Qb8 {[%clk 0:00:17.1]} 40...
b3 {[%clk 0:00:16.5]} 41. Kh2 {[%clk 0:00:18.2]} 41... b2 {[%clk 0:00:17.5]} 42.
Kg2 {[%clk 0:00:18.5]} 42... Qd4 {[%clk 0:00:18.4]} 43. Kh2 {[%clk 0:00:18.6]}
43... Qxf2+ {[%clk 0:00:18.4]} 44. Kh3 {[%clk 0:00:20.3]} 44... Qf1+ {[%clk
0:00:19.8]} 45. Kh2 {[%clk 0:00:21.5]} 45... Qe2+ {[%clk 0:00:19.2]} 46. Kh3
{[%clk 0:00:22.6]} 46... c3 {[%clk 0:00:18.5]} 47. Qb4 {[%clk 0:00:23.2]} 47...
Qg4+ {[%clk 0:00:19.3]} 0-1

[Event "*** Titled Tuesday Blitz"]
[Site "Chess.com"]
[Date "2018.09.04"]
[Round "4"]
[White "FMJoseHerrera"]
[Black "JozefKneht"]
[Result "1-0"]
[WhiteElo "2407"]
[BlackElo "2491"]
[TimeControl "180+2"]
[EndTime "14:27:31 PDT"]
[Termination "FMJoseHerrera won by resignation"]

1. Nf3 {[%clk 0:03:01.9]} 1... d5 {[%clk 0:02:59.9]} 2. g3 {[%clk 0:03:01.7]}
2... Nf6 {[%clk 0:03:01.3]} 3. Bg2 {[%clk 0:03:02.1]} 3... c5 {[%clk 0:03:02.9]}
4. O-O {[%clk 0:03:03.3]} 4... Nc6 {[%clk 0:03:04.5]} 5. d3 {[%clk 0:03:04.2]}
5... e6 {[%clk 0:03:03.7]} 6. c3 {[%clk 0:03:05]} 6... Be7 {[%clk 0:03:05]} 7.
a3 {[%clk 0:03:06.3]} 7... O-O {[%clk 0:03:05.8]} 8. b4 {[%clk 0:03:07.7]} 8...
b6 {[%clk 0:03:03.8]} 9. Nbd2 {[%clk 0:03:08.4]} 9... a5 {[%clk 0:03:01]} 10. b5
{[%clk 0:02:58.6]} 10... Nb8 {[%clk 0:03:01.3]} 11. Ne5 {[%clk 0:02:58.4]} 11...
Bb7 {[%clk 0:03:01.1]} 12. Rb1 {[%clk 0:02:54.1]} 12... Nbd7 {[%clk 0:03:01.3]}
13. Nef3 {[%clk 0:02:46.8]} 13... e5 {[%clk 0:02:58.3]} 14. Nh4 {[%clk
0:02:41.9]} 14... Re8 {[%clk 0:02:52.3]} 15. c4 {[%clk 0:02:42.3]} 15... Qc7
{[%clk 0:02:47.2]} 16. Nf5 {[%clk 0:02:38.5]} 16... Bf8 {[%clk 0:02:46.9]} 17.
cxd5 {[%clk 0:02:39.3]} 17... Nxd5 {[%clk 0:02:38.8]} 18. Qb3 {[%clk 0:02:34.6]}
18... a4 {[%clk 0:02:31.8]} 19. Qc4 {[%clk 0:02:28.8]} 19... N7f6 {[%clk
0:02:19.5]} 20. Nf3 {[%clk 0:02:25.5]} 20... e4 {[%clk 0:02:16.2]} 21. dxe4
{[%clk 0:02:20.9]} 21... Rxe4 {[%clk 0:02:16.3]} 22. Qc2 {[%clk 0:02:20.9]}
22... Rae8 {[%clk 0:02:03.9]} 23. e3 {[%clk 0:02:18.7]} 23... g6 {[%clk
0:02:02.5]} 24. N5h4 {[%clk 0:02:12.6]} 24... Bg7 {[%clk 0:02:00.4]} 25. Bb2
{[%clk 0:02:13.1]} 25... R4e7 {[%clk 0:01:47.5]} 26. Rbd1 {[%clk 0:02:11.2]}
26... Qc8 {[%clk 0:01:36.4]} 27. Qxa4 {[%clk 0:02:09.5]} 27... Ne4 {[%clk
0:01:31.7]} 28. Bxg7 {[%clk 0:02:09.4]} 28... Kxg7 {[%clk 0:01:33.2]} 29. Qc4
{[%clk 0:02:03.6]} 29... Ndc3 {[%clk 0:00:49.8]} 30. Rd3 {[%clk 0:02:01]} 30...
Ne2+ {[%clk 0:00:47.3]} 31. Kh1 {[%clk 0:02:01]} 31... g5 {[%clk 0:00:45.2]} 32.
Nxg5 {[%clk 0:01:40]} 32... Nxg5 {[%clk 0:00:43.6]} 33. Rd2 {[%clk 0:01:18.9]}
33... Bxg2+ {[%clk 0:00:34.9]} 34. Nxg2 {[%clk 0:01:20.8]} 34... Nf3 {[%clk
0:00:20.4]} 35. Qxe2 {[%clk 0:01:11.7]} 35... Nxd2 {[%clk 0:00:19.8]} 36. Qxd2
{[%clk 0:01:13.6]} 36... Qf5 {[%clk 0:00:20.1]} 37. Qd6 {[%clk 0:01:10.3]} 37...
Re6 {[%clk 0:00:20.5]} 38. Qc7 {[%clk 0:01:10.6]} 38... Qe5 {[%clk 0:00:20.2]}
39. Qa7 {[%clk 0:01:09.6]} 39... Qe4 {[%clk 0:00:20.8]} 40. Kg1 {[%clk
0:01:10.9]} 40... R8e7 {[%clk 0:00:19.9]} 41. Qb8 {[%clk 0:01:11.2]} 41... Qe5
{[%clk 0:00:19.8]} 42. Qc8 {[%clk 0:01:08.1]} 42... Re8 {[%clk 0:00:20.8]} 43.
Qb7 {[%clk 0:01:07.6]} 43... R8e7 {[%clk 0:00:21.8]} 44. Qa6 {[%clk 0:01:07.6]}
44... Qb2 {[%clk 0:00:20.7]} 45. Nf4 {[%clk 0:01:07.3]} 45... Re5 {[%clk
0:00:21.1]} 46. Qxb6 {[%clk 0:01:07.2]} 46... Qxa3 {[%clk 0:00:20.5]} 47. Qc6
{[%clk 0:01:06.4]} 47... Qb4 {[%clk 0:00:20.8]} 48. Rc1 {[%clk 0:01:05.4]} 48...
Qe4 {[%clk 0:00:20.5]} 49. Qd6 {[%clk 0:00:59.8]} 49... Ra7 {[%clk 0:00:18.5]}
50. b6 {[%clk 0:00:57.1]} 50... Ra2 {[%clk 0:00:18.5]} 51. b7 {[%clk 0:00:54.7]}
51... Re8 {[%clk 0:00:19.4]} 52. b8=Q {[%clk 0:00:53.6]} 52... Qf3 {[%clk
0:00:19.7]} 53. Qe5+ {[%clk 0:00:43.5]} 1-0

[Event "*** Titled Tuesday Blitz"]
[Site "Chess.com"]
[Date "2018.09.04"]
[Round "4"]
[White "Rashad_Zeynalli"]
[Black "alpasya2009"]
[Result "1-0"]
[WhiteElo "2368"]
[BlackElo "2453"]
[TimeControl "180+2"]
[EndTime "14:27:35 PDT"]
[Termination "Rashad_Zeynalli won on time"]

1. e4 {[%clk 0:02:58.9]} 1... c5 {[%clk 0:03:00.5]} 2. Nf3 {[%clk 0:02:59.6]}
2... d6 {[%clk 0:03:01.4]} 3. d4 {[%clk 0:03:00.7]} 3... cxd4 {[%clk 0:03:03.3]}
4. Nxd4 {[%clk 0:03:02.5]} 4... Nf6 {[%clk 0:03:04.5]} 5. Nc3 {[%clk 0:03:04]}
5... a6 {[%clk 0:03:04.7]} 6. Be3 {[%clk 0:03:05]} 6... e5 {[%clk 0:03:05.4]} 7.
Nb3 {[%clk 0:03:05.7]} 7... Be6 {[%clk 0:03:06.6]} 8. f3 {[%clk 0:03:06.2]} 8...
Nbd7 {[%clk 0:03:04.4]} 9. Qd2 {[%clk 0:03:07.2]} 9... b5 {[%clk 0:03:02.6]} 10.
g4 {[%clk 0:03:07.6]} 10... Nb6 {[%clk 0:03:03.5]} 11. g5 {[%clk 0:02:50.8]}
11... Nh5 {[%clk 0:03:00.9]} 12. Nd5 {[%clk 0:02:46.5]} 12... Nxd5 {[%clk
0:02:35.6]} 13. exd5 {[%clk 0:02:48.4]} 13... Bf5 {[%clk 0:02:35.2]} 14. Na5
{[%clk 0:02:44.3]} 14... Be7 {[%clk 0:02:05.3]} 15. Nc6 {[%clk 0:02:44.1]} 15...
Qd7 {[%clk 0:02:04.3]} 16. a4 {[%clk 0:02:37.3]} 16... O-O {[%clk 0:01:55.6]}
17. Bd3 {[%clk 0:02:28.7]} 17... Bxd3 {[%clk 0:01:46.2]} 18. Qxd3 {[%clk
0:02:30.6]} 18... Nf4 {[%clk 0:01:26]} 19. Bxf4 {[%clk 0:02:23.8]} 19... exf4
{[%clk 0:01:27.9]} 20. Qf5 {[%clk 0:02:23.8]} 20... Qb7 {[%clk 0:01:17.8]} 21.
Qxf4 {[%clk 0:02:19.6]} 21... Rfe8 {[%clk 0:01:18.4]} 22. O-O {[%clk 0:02:19.7]}
22... bxa4 {[%clk 0:01:14.8]} 23. Ra2 {[%clk 0:01:27.5]} 23... Qb5 {[%clk
0:01:08.3]} 24. c4 {[%clk 0:01:21.2]} 24... Qb3 {[%clk 0:00:40.6]} 25. Rfa1
{[%clk 0:01:20.4]} 25... Bd8 {[%clk 0:00:25.8]} 26. Nxd8 {[%clk 0:01:14.2]}
26... Raxd8 {[%clk 0:00:26.1]} 27. Rxa4 {[%clk 0:01:13.1]} 27... Qxb2 {[%clk
0:00:25.4]} 28. Rxa6 {[%clk 0:01:02.2]} 28... Qb4 {[%clk 0:00:09.6]} 29. Ra7
{[%clk 0:00:57.3]} 29... Rf8 {[%clk 0:00:05.3]} 30. Kh1 {[%clk 0:00:48.6]} 30...
Rc8 {[%clk 0:00:05.9]} 31. Rc1 {[%clk 0:00:40.6]} 31... Qc5 {[%clk 0:00:07]} 32.
Rb7 {[%clk 0:00:29.7]} 32... Rb8 {[%clk 0:00:06.1]} 33. Rd7 {[%clk 0:00:21.2]}
33... Rbd8 {[%clk 0:00:06]} 34. Rxd8 {[%clk 0:00:18.4]} 34... Rxd8 {[%clk
0:00:06.5]} 35. Qe4 {[%clk 0:00:19.8]} 35... Rb8 {[%clk 0:00:04]} 36. Rc2 {[%clk
0:00:20.6]} 36... g6 {[%clk 0:00:03.4]} 37. Kg2 {[%clk 0:00:21.2]} 37... Rb1
{[%clk 0:00:03.3]} 38. Qe8+ {[%clk 0:00:19.9]} 38... Kg7 {[%clk 0:00:04.7]} 39.
Rf2 {[%clk 0:00:20.1]} 39... Qxc4 {[%clk 0:00:02.6]} 40. Qe7 {[%clk 0:00:21.4]}
40... Rb6 {[%clk 0:00:03.2]} 41. Qf6+ {[%clk 0:00:22.2]} 41... Kg8 {[%clk
0:00:04.1]} 42. Qd8+ {[%clk 0:00:22.7]} 42... Kg7 {[%clk 0:00:06]} 43. Qxb6
{[%clk 0:00:24.2]} 43... Qxd5 {[%clk 0:00:07.7]} 44. Qb2+ {[%clk 0:00:25.3]}
44... Kg8 {[%clk 0:00:08.5]} 45. Qf6 {[%clk 0:00:26.8]} 45... Qd3 {[%clk
0:00:02.7]} 46. Rb2 {[%clk 0:00:26.1]} 1-0

[Event "*** Titled Tuesday Blitz"]
[Site "Chess.com"]
[Date "2018.09.04"]
[Round "4"]
[White "Haykos"]
[Black "Anton_Demchenko"]
[Result "1-0"]
[WhiteElo "2548"]
[BlackElo "2746"]
[TimeControl "180+2"]
[EndTime "14:27:39 PDT"]
[Termination "Haykos won by resignation"]

1. e4 {[%clk 0:02:51.3]} 1... c5 {[%clk 0:02:59.9]} 2. Nf3 {[%clk 0:02:52.2]}
2... d6 {[%clk 0:03:00.5]} 3. Bb5+ {[%clk 0:02:53.1]} 3... Bd7 {[%clk
0:02:58.1]} 4. Bxd7+ {[%clk 0:02:54.1]} 4... Qxd7 {[%clk 0:02:59]} 5. O-O {[%clk
0:02:55.5]} 5... Nc6 {[%clk 0:02:59]} 6. Re1 {[%clk 0:02:54.6]} 6... e6 {[%clk
0:02:50.5]} 7. c3 {[%clk 0:02:56.5]} 7... Nf6 {[%clk 0:02:40]} 8. d4 {[%clk
0:02:55]} 8... cxd4 {[%clk 0:02:39.6]} 9. cxd4 {[%clk 0:02:56.9]} 9... d5 {[%clk
0:02:41.1]} 10. e5 {[%clk 0:02:57.2]} 10... Ng8 {[%clk 0:02:42.4]} 11. Nbd2
{[%clk 0:02:59.1]} 11... Nge7 {[%clk 0:02:40.6]} 12. Nf1 {[%clk 0:02:59.4]}
12... Nf5 {[%clk 0:02:39.7]} 13. Ng3 {[%clk 0:03:00.4]} 13... Nxg3 {[%clk
0:02:35]} 14. hxg3 {[%clk 0:03:01.2]} 14... h6 {[%clk 0:02:34.3]} 15. Bd2 {[%clk
0:02:58.5]} 15... O-O-O {[%clk 0:02:34.3]} 16. Rc1 {[%clk 0:03:00.1]} 16... Kb8
{[%clk 0:02:35.4]} 17. a3 {[%clk 0:02:59.6]} 17... Be7 {[%clk 0:02:34.3]} 18. b4
{[%clk 0:03:00.7]} 18... Rc8 {[%clk 0:02:35.6]} 19. b5 {[%clk 0:03:01.5]} 19...
Nd8 {[%clk 0:02:33.6]} 20. Qb3 {[%clk 0:03:03.1]} 20... g5 {[%clk 0:02:20.8]}
21. Bb4 {[%clk 0:02:59.1]} 21... Bxb4 {[%clk 0:02:16.3]} 22. Qxb4 {[%clk
0:02:58.4]} 22... b6 {[%clk 0:02:09.9]} 23. Nd2 {[%clk 0:02:58.5]} 23... Nb7
{[%clk 0:02:06.1]} 24. Nb3 {[%clk 0:02:54.5]} 24... Rhe8 {[%clk 0:01:56]} 25. g4
{[%clk 0:02:52.2]} 25... Rcd8 {[%clk 0:01:21]} 26. Rc6 {[%clk 0:02:49.7]} 26...
Qe7 {[%clk 0:01:21.6]} 27. Qxe7 {[%clk 0:02:10]} 27... Rxe7 {[%clk 0:01:22.3]}
28. Rec1 {[%clk 0:02:09.1]} 28... Ree8 {[%clk 0:00:50.8]} 29. Rc7 {[%clk
0:01:46.9]} 29... Rf8 {[%clk 0:00:43.4]} 30. Re7 {[%clk 0:01:47.1]} 30... Rde8
{[%clk 0:00:39.4]} 31. Rcc7 {[%clk 0:01:47.9]} 31... Rxe7 {[%clk 0:00:40.2]} 32.
Rxe7 {[%clk 0:01:49.8]} 32... Rc8 {[%clk 0:00:23.7]} 33. Rxf7 {[%clk 0:01:46.6]}
33... Rc3 {[%clk 0:00:24.6]} 34. Nd2 {[%clk 0:01:43.6]} 34... Rxa3 {[%clk
0:00:21.9]} 35. Rf6 {[%clk 0:01:41.4]} 35... Nd8 {[%clk 0:00:18.2]} 36. Rxh6
{[%clk 0:01:42.4]} 36... a5 {[%clk 0:00:19.1]} 37. bxa6 {[%clk 0:01:43.3]} 37...
Rxa6 {[%clk 0:00:20]} 38. f4 {[%clk 0:01:15.2]} 38... gxf4 {[%clk 0:00:20.3]}
39. g5 {[%clk 0:01:16.4]} 39... Ra7 {[%clk 0:00:16]} 40. Rf6 {[%clk 0:01:06.5]}
40... Rg7 {[%clk 0:00:13.8]} 41. Nf3 {[%clk 0:01:04.7]} 41... b5 {[%clk
0:00:14.5]} 42. Kf2 {[%clk 0:00:57]} 42... b4 {[%clk 0:00:15.5]} 43. Ke2 {[%clk
0:00:58.2]} 43... Kc7 {[%clk 0:00:14]} 44. g6 {[%clk 0:00:55.1]} 44... Kd7
{[%clk 0:00:15]} 45. Kd3 {[%clk 0:00:49.4]} 45... Nc6 {[%clk 0:00:09]} 46. Ng5
{[%clk 0:00:49]} 46... b3 {[%clk 0:00:09.4]} 47. Nxe6 {[%clk 0:00:47]} 47... b2
{[%clk 0:00:08.6]} 48. Kc2 {[%clk 0:00:47.8]} 48... Rg8 {[%clk 0:00:08.6]} 49.
Kxb2 {[%clk 0:00:47.9]} 49... Ne7 {[%clk 0:00:06]} 50. Nxf4 {[%clk 0:00:47.4]}
50... Ra8 {[%clk 0:00:03.9]} 51. Nxd5 {[%clk 0:00:47.4]} 51... Nxd5 {[%clk
0:00:04.5]} 52. Rd6+ {[%clk 0:00:48.5]} 52... Ke7 {[%clk 0:00:05.9]} 53. Rxd5
{[%clk 0:00:49.9]} 53... Rf8 {[%clk 0:00:05.5]} 54. Rd6 {[%clk 0:00:48.4]} 54...
Rf2+ {[%clk 0:00:06.2]} 55. Kc3 {[%clk 0:00:49.8]} 55... Rxg2 {[%clk 0:00:08.1]}
56. Rf6 {[%clk 0:00:50.8]} 1-0